bitfinex-derivatives/quotes_BTCF0:USTF0_20241227
["timestamp","ask_amount","ask_price","bid_price","bid_amount"]
[1735313546682,0.05386765,94697.0,94660.0,0.16090691]
[1735313546880,0.11946631,94678.0,94660.0,0.16090691]
[1735313547175,0.11946631,94686.0,94660.0,0.16090691]
[1735313547371,0.1056206,94677.0,94670.0,0.16090691]
[1735313547770,0.002,94697.0,94661.0,0.1591]
[1735313547978,0.1056206,94676.0,94661.0,0.1591]
[1735313548179,0.42146631,94697.0,94661.0,0.1591]
[1735313548485,0.42146631,94697.0,94661.0,0.08642121]
[1735313548486,0.22509248,94675.0,94661.0,0.08642121]
[1735313548677,0.001,94678.0,94661.0,0.08642121]
[1735313549074,0.21796114,94674.0,94661.0,0.08642121]
[1735313549387,0.16090691,94710.0,94661.0,0.09142121]
[1735313549684,0.10563064,94673.0,94670.0,0.16090691]
[1735313549880,0.11233497,94696.0,94661.0,0.005]
[1735313550080,0.21629224,94672.0,94651.0,0.00158457]
[1735313550385,0.2720616,94695.0,94660.0,0.16090691]
[1735313550680,0.1056284,94679.0,94670.0,0.16090691]
[1735313550867,0.16090691,94710.0,94671.0,0.162]
[1735313551072,0.11840028,94697.0,94690.0,0.16090691]
[1735313551273,0.10562506,94718.0,94691.0,0.1]
[1735313551477,0.16090691,94730.0,94690.0,0.16090691]
[1735313551674,0.003,94695.0,94680.0,0.16090691]
[1735313551874,0.003,94695.0,94680.0,0.46090691]
[1735313552173,0.16090691,94720.0,94690.0,0.002]
[1735313552479,0.001,94695.0,94690.0,0.002]
[1735313552783,0.05189772,94720.0,94682.0,0.052879]
[1735313552983,0.16090691,94730.0,94690.0,0.16090691]
[1735313553187,0.10560498,94715.0,94700.0,0.16090691]
[1735313553484,0.11769019,94729.0,94700.0,0.16090691]
[1735313553779,0.10560498,94739.0,94701.0,0.1542]
[1735313554076,0.004,94720.0,94701.0,0.1542]
[1735313554785,0.013,94720.0,94701.0,0.1542]
[1735313554976,0.10558045,94719.0,94701.0,0.1542]
[1735313555375,0.10558045,94719.0,94701.0,0.1552]
[1735313555985,0.10558045,94719.0,94701.0,0.1542]
[1735313556282,0.16052593,94719.0,94701.0,0.1542]
[1735313556879,0.15952593,94719.0,94701.0,0.1542]
[1735313557079,0.1129721,94718.0,94701.0,0.1542]
[1735313557574,0.1129721,94718.0,94701.0,0.1552]
[1735313557786,0.16090691,94711.0,94681.0,0.00158408]
[1735313558083,0.16090691,94710.0,94679.0,0.18942584]
[1735313558277,0.11488109,94710.0,94701.0,0.001]
[1735313558581,0.40558602,94710.0,94679.0,0.18942584]
[1735313558779,0.46090691,94710.0,94679.0,0.18942584]
[1735313558980,0.22583149,94709.0,94670.0,0.16090691]
[1735313559377,0.16090691,94700.0,94670.0,0.16090691]
[1735313559586,0.68538946,94709.0,94670.0,0.16090691]
[1735313559786,0.12024547,94699.0,94670.0,0.16090691]
[1735313559981,0.22591357,94708.0,94680.0,0.16090691]
[1735313560286,0.12531082,94709.0,94670.0,0.16090691]
[1735313560588,0.16090691,94700.0,94660.0,0.16249124]
[1735313560883,0.11843613,94699.0,94670.0,0.16090691]
[1735313561085,0.27632784,94699.0,94670.0,0.16090691]
[1735313561274,0.10561892,94699.0,94670.0,0.16090691]
[1735313561472,0.11843613,94698.0,94670.0,0.001]
[1735313561672,0.22405505,94698.0,94660.0,0.16249124]
[1735313561886,0.40561892,94698.0,94660.0,0.16249124]
[1735313562182,0.16090691,94690.0,94670.0,0.001]
[1735313562382,0.1567,94689.0,94670.0,0.001]
[1735313562578,0.1567,94689.0,94660.0,0.00158433]
[1735313562579,0.27452694,94689.0,94660.0,0.00158433]
[1735313562886,0.10562004,94688.0,94660.0,0.001]
[1735313563388,0.12029923,94687.0,94670.0,0.16090691]
[1735313563985,0.12029923,94687.0,94600.0,0.10340761]
[1735313563986,0.16090691,94680.0,94600.0,0.10340761]
[1735313564187,0.16090691,94660.0,94620.0,0.1567]
[1735313564383,0.16090691,94680.0,94639.0,0.18963392]
[1735313564384,0.16090691,94650.0,94639.0,0.18963392]
[1735313564688,0.37054182,94659.0,94639.0,0.18963392]
[1735313564879,0.11522122,94649.0,94639.0,0.18963392]
[1735313565280,0.10565351,94658.0,94639.0,0.18963392]
[1735313565579,0.11397582,94657.0,94639.0,0.18963392]
[1735313565780,0.10565351,94657.0,94639.0,0.18963392]
[1735313565991,0.11148698,94658.0,94639.0,0.19163392]
[1735313566187,0.11148698,94658.0,94639.0,0.002]
[1735313566188,0.11148698,94656.0,94639.0,0.002]
[1735313566487,0.05199376,94659.0,94639.0,0.002]
[1735313566685,0.10565463,94655.0,94631.0,0.1609]
[1735313566884,0.16090691,94650.0,94631.0,0.10387325]
[1735313567185,0.16090691,94650.0,94620.0,0.1567]
[1735313567406,0.11370872,94654.0,94620.0,0.31760691]
[1735313567407,0.11370872,94649.0,94620.0,0.31760691]
[1735313567686,0.11370872,94649.0,94620.0,0.1567]
[1735313567884,0.10566021,94648.0,94620.0,0.1567]
[1735313568181,0.16090691,94640.0,94639.0,0.001]
[1735313568383,0.12061092,94647.0,94639.0,0.001]
[1735313568587,0.12061092,94640.0,94639.0,0.001]
[1735313568779,0.12061092,94648.0,94620.0,0.1567]
[1735313568982,0.1056697,94640.0,94620.0,0.1567]
[1735313569181,0.1056697,94640.0,94615.0,0.1355097]
[1735313569381,0.11526907,94639.0,94615.0,0.1355097]
[1735313569581,0.10566412,94639.0,94620.0,0.16090691]
[1735313569781,0.001,94647.0,94615.0,0.1355097]
[1735313570288,0.001,94647.0,94616.0,0.1562]
[1735313570289,0.10566412,94638.0,94616.0,0.1562]
[1735313570592,0.001,94647.0,94616.0,0.1562]
[1735313570892,0.16090691,94630.0,94592.0,0.0006]
[1735313571075,0.16090691,94620.0,94600.0,0.06466001]
[1735313571483,0.16090691,94610.0,94600.0,0.02165001]
[1735313571784,0.25387305,94619.0,94588.0,0.1522]
[1735313571982,0.11050036,94609.0,94588.0,0.1522]
[1735313572183,0.16090691,94610.0,94588.0,0.1522]
[1735313572387,0.16090691,94610.0,94566.0,0.18963392]
[1735313572388,0.16090691,94601.0,94566.0,0.18963392]
[1735313572581,0.16090691,94590.0,94566.0,0.18963392]
[1735313572990,0.1185094,94589.0,94566.0,0.18963392]
[1735313573196,0.16090691,94580.0,94560.0,0.06450524]
[1735313573397,0.16090691,94568.0,94551.0,0.26729438]
[1735313573585,0.16090691,94568.0,94547.0,0.00158643]
[1735313573586,0.27681811,94579.0,94547.0,0.00158643]
[1735313573898,0.1185094,94567.0,94547.0,0.00158643]
[1735313574089,0.16090691,94570.0,94547.0,0.00158643]
[1735313574285,0.16090691,94560.0,94540.0,0.00716977]
[1735313574593,0.12195281,94559.0,94540.0,0.00716977]
[1735313574908,0.16090691,94580.0,94549.0,0.16090691]
[1735313575094,0.1057496,94558.0,94541.0,0.1658]
[1735313575295,0.1206945,94568.0,94541.0,0.1658]
[1735313575488,0.1057647,94557.0,94541.0,0.1658]
[1735313575688,0.16090691,94551.0,94540.0,0.01016977]
[1735313575891,0.16090691,94551.0,94500.0,0.1]
[1735313576088,0.22523755,94550.0,94520.0,0.16090691]
[1735313576391,0.11947285,94555.0,94541.0,0.001]
[1735313576584,0.16090691,94550.0,94510.0,0.16090691]
[1735313576786,0.22524202,94549.0,94510.0,0.16090691]
[1735313577092,0.16090691,94550.0,94510.0,0.16090691]
[1735313577093,0.16090691,94540.0,94510.0,0.16090691]
[1735313577394,0.11802738,94539.0,94510.0,0.16090691]
[1735313577594,0.11802738,94539.0,94503.0,0.00158673]
[1735313577798,0.10578708,94538.0,94503.0,0.00858673]
[1735313578089,0.16090691,94530.0,94503.0,0.00858673]
[1735313578596,0.16090691,94513.0,94480.0,0.16090691]
[1735313579088,0.11938642,94512.0,94476.0,0.052994]
[1735313579284,0.22521044,94512.0,94500.0,0.16090691]
[1735313579486,0.10582402,94512.0,94500.0,0.16090691]
[1735313579681,0.11938642,94511.0,94500.0,0.16090691]
[1735313579886,0.11938642,94511.0,94467.0,0.4937]
[1735313579887,0.11938642,94511.0,94490.0,0.16090691]
[1735313580093,0.11973689,94512.0,94490.0,0.16090691]
[1735313580286,0.16090691,94520.0,94480.0,0.16090691]
[1735313580491,0.10581394,94510.0,94480.0,0.16090691]
[1735313580688,0.16090691,94520.0,94480.0,0.16090691]
[1735313580689,0.11973689,94519.0,94480.0,0.16290691]
[1735313580895,0.11973689,94509.0,94480.0,0.16290691]
[1735313581092,0.10581394,94509.0,94480.0,0.002]
[1735313581300,0.16090691,94510.0,94480.0,0.002]
[1735313581495,0.11268523,94508.0,94480.0,0.16590691]
[1735313581691,0.21850589,94509.0,94480.0,0.16590691]
[1735313581886,0.11268523,94509.0,94480.0,0.16590691]
[1735313582088,0.10582066,94508.0,94480.0,0.16590691]
[1735313582287,0.10582066,94508.0,94471.0,0.1]
[1735313582485,0.11394217,94507.0,94471.0,0.1]
[1735313582692,0.21976843,94507.0,94480.0,0.16090691]
[1735313582994,0.11394217,94508.0,94480.0,0.16090691]
[1735313583197,0.22630104,94506.0,94471.0,0.1]
[1735313583392,0.16090691,94500.0,94467.0,0.3234]
[1735313583600,0.12047366,94505.0,94480.0,0.16090691]
[1735313583795,0.12047366,94505.0,94470.0,0.16090691]
[1735313583796,0.22630104,94499.0,94470.0,0.16090691]
[1735313583995,0.10582738,94499.0,94480.0,0.001]
[1735313584197,0.1104857,94498.0,94480.0,0.16190691]
[1735313584493,0.10583746,94498.0,94480.0,0.16190691]
[1735313584694,0.001,94505.0,94488.0,0.16090691]
[1735313584900,0.10583746,94497.0,94470.0,0.16090691]
[1735313585092,0.11563266,94504.0,94471.0,0.1]
[1735313585288,0.11563266,94496.0,94470.0,0.16090691]
[1735313585597,0.10582402,94496.0,94480.0,0.001]
[1735313585801,0.16090691,94500.0,94480.0,0.001]
[1735313585995,0.11819772,94495.0,94480.0,0.001]
[1735313586199,0.005,94497.0,94480.0,0.001]
[1735313586701,0.11819772,94496.0,94480.0,0.001]
[1735313586902,0.11819772,94496.0,94460.0,0.16090691]
[1735313587199,0.11819772,94496.0,94450.0,0.16090691]
[1735313587200,0.16090691,94490.0,94450.0,0.16090691]
[1735313587593,0.12088953,94489.0,94451.0,0.1678]
[1735313587790,0.22672307,94489.0,94480.0,0.001]
[1735313587995,0.22672307,94489.0,94451.0,0.1678]
[1735313588194,0.16090691,94480.0,94451.0,0.1678]
[1735313588493,0.16190691,94490.0,94451.0,0.1678]
[1735313588693,0.11032151,94479.0,94460.0,0.16090691]
[1735313588894,0.11032151,94479.0,94461.0,0.1685]
[1735313588895,0.10583746,94479.0,94461.0,0.1685]
[1735313589088,0.001,94489.0,94461.0,0.1685]
[1735313589295,0.10585427,94478.0,94461.0,0.1685]
[1735313589694,0.001,94480.0,94461.0,0.1685]
[1735313590000,0.001,94480.0,94467.0,0.052999]
[1735313590202,0.001,94480.0,94468.0,0.1685]
[1735313590501,0.12277929,94479.0,94468.0,0.1685]
[1735313590897,0.10585314,94478.0,94468.0,0.1685]
[1735313591406,0.11330885,94477.0,94468.0,0.1685]
[1735313591600,0.11330885,94477.0,94468.0,0.16039491]
[1735313591794,0.11330885,94477.0,94468.0,0.16139491]
[1735313591994,0.10584978,94476.0,94468.0,0.001]
[1735313592193,0.22583625,94476.0,94468.0,0.001]
[1735313592399,0.16090691,94500.0,94468.0,0.001]
[1735313592594,0.1058509,94475.0,94468.0,0.001]
[1735313592810,0.008,94478.0,94470.0,0.16090691]
[1735313592811,0.12798647,94478.0,94470.0,0.16090691]
[1735313593005,0.06221476,94478.0,94470.0,0.16090691]
[1735313593305,0.1058509,94474.0,94468.0,0.16090691]
[1735313593509,0.008,94476.0,94464.0,0.16090691]
[1735313594003,0.008,94476.0,94460.0,0.16090691]
[1735313594308,0.09565248,94554.0,94460.0,0.16090691]
[1735313594309,0.35612,94523.0,94460.0,0.16090691]
[1735313594508,0.21621606,94475.0,94460.0,0.16090691]
[1735313594812,0.007,94475.0,94468.0,0.001]
[1735313594998,0.21769454,94474.0,94468.0,0.001]
[1735313595398,0.05207185,94475.0,94460.0,0.16190691]
[1735313595702,0.11184083,94473.0,94460.0,0.12623064]
[1735313596002,0.10585202,94474.0,94468.0,0.001]
[1735313596208,0.12733686,94475.0,94468.0,0.001]
[1735313596397,0.12033686,94472.0,94468.0,0.001]
[1735313596593,0.10585763,94473.0,94468.0,0.001]
[1735313596904,0.12033686,94472.0,94460.0,0.16090691]
[1735313597098,0.22619449,94472.0,94460.0,0.16090691]
[1735313597295,0.18629756,94548.0,94460.0,0.16090691]
[1735313597608,0.21746233,94471.0,94460.0,0.16090691]
[1735313597804,0.004,94473.0,94461.0,0.16090691]
[1735313598003,0.22591976,94470.0,94449.0,0.1597]
[1735313598412,0.001,94472.0,94450.0,0.16090691]
[1735313598601,0.22592369,94469.0,94460.0,0.16190691]
[1735313598802,0.12006662,94471.0,94460.0,0.001]
[1735313598996,0.22533079,94468.0,94460.0,0.16190691]
[1735313599204,0.002,94473.0,94460.0,0.001]
[1735313599402,0.11947372,94467.0,94460.0,0.001]
[1735313599599,0.22533247,94467.0,94460.0,0.001]
[1735313599809,0.002,94473.0,94460.0,0.001]
[1735313600007,0.21665743,94466.0,94450.0,0.16090691]
[1735313600314,0.11079868,94471.0,94450.0,0.16090691]
[1735313600513,0.21665631,94465.0,94460.0,0.16090691]
[1735313600714,0.21665631,94465.0,94449.0,0.1597]
[1735313600715,0.10585763,94465.0,94449.0,0.1597]
[1735313600907,0.11079868,94471.0,94455.0,0.16090691]
[1735313601215,0.08468763,94469.0,94455.0,0.16090691]
[1735313601410,0.1185121,94470.0,94450.0,0.16390691]
[1735313601610,0.22438037,94468.0,94450.0,0.16090691]
[1735313601810,0.10586827,94468.0,94458.0,0.16090691]
[1735313602010,0.05543841,94473.0,94450.0,0.16090691]
[1735313602215,0.22314329,94467.0,94441.0,0.058454]
[1735313602511,0.11727502,94472.0,94455.0,0.001]
[1735313602714,0.22313657,94466.0,94455.0,0.001]
[1735313603014,0.11727502,94472.0,94450.0,0.16090691]
[1735313603207,0.21811336,94465.0,94441.0,0.058454]
[1735313603406,0.10586435,94465.0,94450.0,0.16090691]
[1735313603613,0.11224901,94464.0,94450.0,0.16090691]
[1735313603806,0.21811336,94464.0,94450.0,0.16090691]
[1735313604112,0.11415596,94472.0,94450.0,0.16090691]
[1735313604315,0.22002423,94463.0,94441.0,0.02322198]
[1735313604614,0.11415596,94472.0,94455.0,0.009]
[1735313604812,0.22002423,94462.0,94460.0,0.16090691]
[1735313605002,0.10586827,94462.0,94455.0,0.009]
[1735313605203,0.001,94464.0,94455.0,0.009]
[1735313605511,0.10586379,94463.0,94455.0,0.009]
[1735313605715,0.16090691,94500.0,94455.0,0.3]
[1735313605913,0.10586379,94462.0,94456.0,0.07]
[1735313606121,0.12017284,94487.0,94452.0,0.16090691]
[1735313606418,0.10584698,94461.0,94450.0,0.16990691]
[1735313606809,0.12017284,94460.0,94450.0,0.16990691]
[1735313607118,0.002,94464.0,94450.0,0.16990691]
[1735313607306,0.002,94464.0,94454.0,0.16090691]
[1735313607505,0.10587052,94463.0,94454.0,0.16090691]
[1735313608008,0.001,94460.0,94440.0,0.10713291]
[1735313608209,0.001,94460.0,94440.0,0.16090691]
[1735313608516,0.12092787,94459.0,94440.0,0.16090691]
[1735313608820,0.22679446,94459.0,94440.0,0.16090691]
[1735313609119,0.10586659,94459.0,94440.0,0.16090691]
[1735313609304,0.10586659,94459.0,94440.0,0.16490691]
[1735313609508,0.11234001,94458.0,94440.0,0.16490691]
[1735313609808,0.10587668,94458.0,94440.0,0.16490691]
[1735313610009,0.05408018,94463.0,94436.0,0.35632]
[1735313610010,0.11234001,94462.0,94436.0,0.35632]
[1735313610221,0.22453604,94457.0,94440.0,0.001]
[1735313610410,0.10587668,94457.0,94440.0,0.001]
[1735313610610,0.11865936,94462.0,94440.0,0.001]
[1735313610811,0.2245366,94456.0,94440.0,0.001]
[1735313611014,0.11865936,94461.0,94436.0,0.35832]
[1735313611209,0.22053919,94455.0,94436.0,0.35776]
[1735313611410,0.10587836,94455.0,94440.0,0.004]
[1735313611619,0.21474874,94470.0,94440.0,0.004]
[1735313611919,0.11466083,94454.0,94440.0,0.005]
[1735313612220,0.16090691,94480.0,94440.0,0.16490691]
[1735313612406,0.10587052,94453.0,94436.0,0.31354921]
[1735313612613,0.12082664,94458.0,94440.0,0.003]
[1735313612807,0.16090691,94460.0,94440.0,0.003]
[1735313612808,0.10587052,94452.0,94440.0,0.003]
[1735313613126,0.11494215,94451.0,94440.0,0.003]
[1735313613420,0.1861741,94453.0,94440.0,0.009]
[1735313613813,0.22082275,94452.0,94440.0,0.16090692]
[1735313614014,0.1058806,94452.0,94440.0,0.16090692]
[1735313614220,0.1058806,94452.0,94440.0,0.003]
[1735313614420,0.11105571,94451.0,94436.0,0.26431921]
[1735313614612,0.16090691,94450.0,94423.0,0.1711]
[1735313614813,0.11105571,94451.0,94440.0,0.004]
[1735313615015,0.21693631,94449.0,94440.0,0.004]
[1735313615218,0.1590935,94449.0,94400.0,0.1278]
[1735313615412,0.16090691,94410.0,94395.0,0.17791267]
[1735313615618,0.16090691,94430.0,94395.0,0.17791267]
[1735313615819,0.16090691,94430.0,94391.0,0.173]
[1735313615820,0.1813,94429.0,94391.0,0.173]
[1735313616123,0.15930691,94410.0,94390.0,0.00323217]
[1735313616322,0.56214699,94429.0,94390.0,0.16413908]
[1735313616518,0.1813,94429.0,94400.0,0.16090691]
[1735313616820,0.10592098,94428.0,94423.0,0.003]
[1735313617123,0.1141753,94428.0,94423.0,0.003]
[1735313617326,0.16090691,94414.0,94380.0,0.16090691]
[1735313617716,0.1141753,94413.0,94381.0,0.173]
[1735313617914,0.001,94410.0,94395.0,0.005]
[1735313618321,0.11637046,94409.0,94395.0,0.005]
[1735313618522,0.22230602,94409.0,94382.0,0.3381]
[1735313618820,0.10593556,94409.0,94382.0,0.3381]
[1735313619214,0.11885994,94408.0,94395.0,0.005]
[1735313619723,0.11885994,94411.0,94395.0,0.005]
[1735313619941,0.10593725,94407.0,94395.0,0.005]
[1735313620125,0.18599242,94412.0,94380.0,0.16390691]
[1735313620323,0.11190849,94406.0,94382.0,0.009]
[1735313620518,0.10593108,94406.0,94382.0,0.009]
[1735313620724,0.11190849,94408.0,94395.0,0.001]
[1735313620918,0.11190849,94405.0,94395.0,0.001]
[1735313621126,0.22732295,94408.0,94395.0,0.001]
[1735313621324,0.12139187,94407.0,94382.0,0.009]
[1735313621519,0.1059322,94404.0,94382.0,0.009]
[1735313621720,0.16090691,94392.0,94374.0,0.01063464]
[1735313621927,0.16090691,94392.0,94307.0,0.01873142]
[1735313621928,0.16090691,94392.0,94350.0,0.16090691]
[1735313622117,0.1059322,94405.0,94338.0,0.1762]
[1735313622118,0.11866052,94391.0,94360.0,0.16090691]
[1735313622317,0.11866052,94391.0,94370.0,0.16090691]
[1735313622522,0.10595745,94391.0,94382.0,0.009]
[1735313622718,0.05401444,94391.0,94382.0,0.009]
[1735313622921,0.10595745,94390.0,94370.0,0.16090691]
[1735313623230,0.11951693,94390.0,94380.0,0.16090691]
[1735313623416,0.001,94392.0,94363.0,0.009]
[1735313623417,0.001,94392.0,94381.0,0.07]
[1735313623619,0.10595465,94389.0,94363.0,0.009]
[1735313623822,0.11951693,94391.0,94370.0,0.16090691]
[1735313624120,0.05392077,94392.0,94370.0,0.16090691]
[1735313624121,0.22547158,94388.0,94370.0,0.16090691]
[1735313624423,0.09250184,94371.0,94361.0,0.3242186]
[1735313624817,0.09250184,94371.0,94370.0,0.053054]
[1735313625017,0.09250184,94371.0,94363.0,0.001]
[1735313625827,0.09250184,94379.0,94370.0,0.002]
[1735313626023,0.09250184,94379.0,94371.0,0.181]
[1735313626728,0.10596082,94378.0,94371.0,0.181]
[1735313627028,0.09250184,94381.0,94371.0,0.181]
[1735313627425,0.10596082,94380.0,94371.0,0.481]
[1735313627621,0.09250184,94381.0,94371.0,0.481]
[1735313628017,0.09250184,94381.0,94373.0,0.053052]
[1735313628227,0.04971281,94446.0,94371.0,0.481]
[1735313628228,0.09250184,94386.0,94371.0,0.481]
[1735313628433,0.09250184,94386.0,94371.0,0.181]
[1735313628627,0.09250184,94386.0,94371.0,0.185]
[1735313628833,0.09250184,94386.0,94371.0,0.485]
[1735313629222,0.10595914,94385.0,94371.0,0.185]
[1735313629831,0.09250184,94392.0,94375.0,0.16090691]
[1735313630222,0.09250184,94392.0,94380.0,0.10797454]
[1735313630421,0.09250184,94392.0,94373.0,0.002]
[1735313630627,0.11549999,94391.0,94373.0,0.002]
[1735313630824,0.22145071,94391.0,94371.0,0.181]
[1735313631134,0.09250184,94386.0,94370.0,0.10797454]
[1735313631335,0.09250184,94386.0,94380.0,0.10797454]
[1735313631521,0.09250184,94386.0,94376.0,0.28337454]
[1735313631831,0.10595352,94385.0,94371.0,0.002]
[1735313632127,0.22344858,94385.0,94360.0,0.0358053]
[1735313632330,0.10797454,94370.0,94327.0,0.545]
[1735313632631,0.10797454,94360.0,94330.0,0.10797454]
[1735313632821,0.22664229,94369.0,94327.0,0.845]
[1735313633019,0.1206854,94359.0,94340.0,0.10797454]
[1735313633224,0.11690371,94368.0,94340.0,0.10797454]
[1735313633426,0.10599058,94358.0,94340.0,0.10797454]
[1735313633631,0.10599058,94358.0,94350.0,0.10797454]
[1735313633828,0.10797454,94370.0,94350.0,0.10797454]
[1735313634133,0.10797454,94370.0,94340.0,0.10797454]
[1735313634134,0.15427389,94356.0,94340.0,0.10797454]
[1735313634734,0.1059771,94355.0,94340.0,0.10797454]
[1735313635241,0.09220423,94351.0,94340.0,0.10797454]
[1735313635536,0.09220423,94351.0,94340.0,0.10897454]
[1735313636236,0.09220423,94347.0,94340.0,0.10797454]
[1735313637033,0.09220423,94347.0,94332.0,0.123075]
[1735313637034,0.09220423,94347.0,94332.0,0.07]
[1735313637234,0.10599339,94346.0,94332.0,0.3]
[1735313637530,0.10599339,94346.0,94336.0,0.10797454]
[1735313637738,0.09220423,94350.0,94336.0,0.10797454]
[1735313637935,0.10599564,94345.0,94340.0,0.001]
[1735313638236,0.09220423,94350.0,94340.0,0.001]
[1735313638445,0.1441697,94350.0,94340.0,0.301]
[1735313638636,0.15427389,94362.0,94347.0,0.053067]
[1735313638941,0.15427389,94362.0,94340.0,0.3]
[1735313638942,0.20750071,94362.0,94352.0,0.10797454]
[1735313639135,0.18599242,94373.0,94353.0,0.4317]
[1735313639327,0.21720311,94395.0,94363.0,0.10797454]
[1735313639533,0.21720311,94395.0,94380.0,0.10797454]
[1735313639833,0.002,94362.0,94361.0,0.0015894]
[1735313640744,0.10797454,94400.0,94361.0,0.0015894]
[1735313640935,0.10797454,94390.0,94361.0,0.00148214]
[1735313641139,0.003,94362.0,94361.0,0.00148214]
[1735313641337,0.10797454,94380.0,94351.0,0.16281939]
[1735313641537,0.44627805,94389.0,94360.0,0.10797454]
[1735313641844,0.1059597,94362.0,94355.0,0.053062]
[1735313642034,0.11372575,94388.0,94355.0,0.053062]
[1735313642230,0.52188465,94437.0,94355.0,0.053062]
[1735313642429,0.10597879,94387.0,94355.0,0.053062]
[1735313642635,0.22709474,94387.0,94370.0,0.10797454]
[1735313642935,0.00211783,94436.0,94370.0,0.10797454]
[1735313643136,0.22709474,94386.0,94380.0,0.10797454]
[1735313643330,0.11479059,94387.0,94380.0,0.10797454]
[1735313643537,0.007,94400.0,94381.0,0.357]
[1735313643749,0.10594903,94399.0,94390.0,0.10797454]
[1735313643943,0.06060394,94400.0,94390.0,0.10797454]
[1735313644142,0.05360394,94400.0,94390.0,0.10797454]
[1735313644346,0.11347914,94477.0,94390.0,0.10797454]
[1735313644347,0.24756041,94443.0,94390.0,0.10797454]
[1735313644536,0.10797454,94420.0,94390.0,0.10797454]
[1735313644738,0.10593781,94399.0,94390.0,0.10797454]
[1735313645042,0.10797454,94430.0,94390.0,0.10797454]
[1735313645227,0.22206145,94398.0,94381.0,0.35756]
[1735313645433,0.11612364,94398.0,94381.0,0.357]
[1735313645635,0.10797454,94420.0,94381.0,0.357]
[1735313645837,0.10593837,94397.0,94381.0,0.357]
[1735313646035,0.05367779,94420.0,94390.0,0.004]
[1735313646243,0.27103663,94428.0,94400.0,0.10797454]
[1735313646442,0.1111256,94419.0,94400.0,0.10797454]
[1735313646631,0.10594454,94419.0,94400.0,0.10797454]
[1735313646837,0.1111256,94427.0,94400.0,0.10797454]
[1735313647041,0.1111256,94418.0,94400.0,0.10797454]
[1735313647235,0.22418454,94428.0,94400.0,0.10797454]
[1735313647437,0.003,94428.0,94400.0,0.10797454]
[1735313647638,0.22415705,94427.0,94400.0,0.10797454]
[1735313647845,0.22415705,94427.0,94410.0,0.10797454]
[1735313648038,0.10591705,94427.0,94417.0,0.10797454]
[1735313648240,0.10591705,94427.0,94400.0,0.10797454]
[1735313648435,0.10797454,94420.0,94390.0,0.10797454]
[1735313648640,0.10797454,94420.0,94381.0,0.33057878]
[1735313648838,0.10797454,94420.0,94371.0,0.28695176]
[1735313648839,0.10797454,94400.0,94371.0,0.28695176]
[1735313649041,0.1749,94399.0,94371.0,0.18303073]
[1735313649237,0.29420377,94399.0,94371.0,0.14227541]
[1735313649445,0.29420377,94399.0,94371.0,0.13827541]
[1735313649748,0.10594847,94398.0,94370.0,0.10797454]
[1735313650247,0.11930377,94397.0,94370.0,0.10797454]
[1735313650544,0.11930377,94397.0,94380.0,0.10797454]
[1735313650941,0.05264757,94398.0,94380.0,0.10797454]
[1735313650942,0.10595016,94396.0,94380.0,0.10797454]
[1735313651139,0.10595016,94396.0,94380.0,0.21594908]
[1735313651442,0.002,94398.0,94381.0,0.1737]
[1735313651635,0.003,94397.0,94388.0,0.10797454]
[1735313651838,0.10797454,94430.0,94388.0,0.10797454]
[1735313652040,0.05357467,94430.0,94400.0,0.10797454]
[1735313652240,0.16190547,94420.0,94381.0,0.17604944]
[1735313652439,0.37624458,94429.0,94356.0,0.3656]
[1735313652440,0.16190547,94410.0,94370.0,0.16190547]
[1735313652743,0.55159891,94409.0,94388.0,0.004]
[1735313653048,0.37621428,94409.0,94390.0,0.16190547]
[1735313653348,0.37621428,94409.0,94388.0,0.004]
[1735313654347,0.10591537,94409.0,94390.0,0.16190547]
[1735313654546,0.10591537,94409.0,94399.0,0.16190547]
[1735313655151,0.10891537,94409.0,94399.0,0.16190547]
[1735313655547,0.003,94409.0,94399.0,0.16190547]
[1735313655848,0.004,94409.0,94399.0,0.16190547]
[1735313656441,0.006,94409.0,94399.0,0.16190547]
[1735313657049,0.10592771,94408.0,94399.0,0.16190547]
[1735313657247,0.10592771,94408.0,94399.0,0.001]
[1735313657547,0.15801405,94407.0,94380.0,0.00158938]
[1735313657749,0.15801405,94407.0,94370.0,0.16190547]
[1735313657750,0.26391405,94407.0,94370.0,0.16190547]
[1735313657954,0.11549631,94406.0,94370.0,0.16190547]
[1735313658151,0.52142458,94406.0,94360.0,0.16190547]
[1735313658448,0.52142458,94406.0,94352.0,0.3792]
[1735313658449,0.16190547,94380.0,94352.0,0.00072]
[1735313658650,0.1911,94379.0,94350.0,0.16190547]
[1735313658849,0.30789048,94379.0,94350.0,0.16190547]
[1735313659040,0.10594567,94378.0,94350.0,0.16190547]
[1735313659250,0.10594567,94378.0,94360.0,0.16190547]
[1735313659453,0.11812313,94377.0,94360.0,0.16190547]
[1735313659842,0.16190547,94410.0,94360.0,0.16190547]
[1735313660047,0.10597261,94376.0,94368.0,0.16190547]
[1735313660248,0.27696049,94399.0,94368.0,0.16190547]
[1735313660442,0.16190547,94400.0,94369.0,0.187]
[1735313660643,0.10596363,94375.0,94369.0,0.187]
[1735313660853,0.27696049,94398.0,94369.0,0.187]
[1735313661052,0.10596363,94374.0,94369.0,0.187]
[1735313661252,0.27047537,94397.0,94369.0,0.187]
[1735313661449,0.15786852,94397.0,94370.0,0.16190547]
[1735313661746,0.27047537,94396.0,94370.0,0.16190547]
[1735313661948,0.27047537,94396.0,94369.0,0.187]
[1735313662150,0.10596419,94396.0,94369.0,0.19]
[1735313662342,0.11717858,94395.0,94369.0,0.192]
[1735313662559,0.3814792,94395.0,94369.0,0.005]
[1735313662861,0.6814792,94395.0,94369.0,0.005]
[1735313663158,0.3814792,94395.0,94369.0,0.005]
[1735313663747,0.16190547,94390.0,94350.0,0.16190547]
[1735313664054,0.11569867,94389.0,94350.0,0.16190547]
[1735313664255,0.27411067,94389.0,94350.0,0.16190547]
[1735313664559,0.053051,94376.0,94369.0,0.001]
[1735313664755,0.053054,94370.0,94369.0,0.001]
[1735313665152,0.28061958,94370.0,94360.0,0.16190547]
[1735313665355,0.053059,94361.0,94360.0,0.16190547]
[1735313665562,0.053059,94361.0,94351.0,0.16190547]
[1735313665767,0.05207549,94370.0,94351.0,0.16190547]
[1735313666061,0.053044,94387.0,94350.0,0.004]
[1735313666062,0.053062,94356.0,94350.0,0.004]
[1735313666255,0.031892,94356.0,94347.0,0.1932429]